fUST/lending_fUST_20250601
["ID","MTS","AMOUNT","RATE_DAILY","PERIOD"]
[363453886,1748728239122,-1689.58,0.00017808,2]
[363453888,1748728239131,-1358.16,0.00017808,2]
[363453890,1748728239141,-430.0,0.00017808,2]
[363453892,1748728239151,-430.0,0.00017808,2]
[363453894,1748728239160,-544.86,0.00017808,2]
[363453896,1748728239174,-430.0,0.00017808,2]
[363453898,1748728239185,-845.99,0.00017808,2]
[363453900,1748728239194,-430.0,0.00017808,2]
[363453902,1748728239204,-735.33,0.00017808,2]
[363453904,1748728239213,-258.53,0.00017808,2]
[363453906,1748728239223,-430.0,0.00017808,2]
[363453908,1748728239234,-1398.85,0.00017808,2]
[363453910,1748728239244,-503.12478374,0.00017808,2]
[363453912,1748728239253,-430.0,0.00017808,2]
[363453914,1748728239264,-430.0,0.00017808,2]
[363453916,1748728239273,-515.1,0.00017808,2]
[363453918,1748728239283,-432.75,0.00017808,2]
[363453920,1748728239292,-1112.3,0.00017808,2]
[363453923,1748728239303,-469.27,0.00017808,2]
[363453925,1748728239312,-430.0,0.00017808,2]
[363453927,1748728239322,-728.92,0.00017808,2]
[363453929,1748728239332,-430.0,0.00017808,2]
[363453931,1748728239346,-1161.16,0.00017808,2]
[363453933,1748728239356,-524.62,0.00017808,2]
[363453935,1748728239365,-912.32,0.00017808,2]
[363453937,1748728239375,-565.33,0.00017808,2]
[363453939,1748728239386,-430.0,0.00017808,2]
[363453941,1748728239395,-1332.64,0.00017808,2]
[363453943,1748728239405,-728.09,0.00017808,2]
[363453945,1748728239415,-300.0,0.0001796,2]
[363453947,1748728239424,-420.0,0.0001796,2]
[363453949,1748728239434,-3712.74,0.00017966,2]
[363453951,1748728239444,-1076.32925214,0.00018003,2]
[363453953,1748728239454,-446.2509871,0.00018005,2]
[363453955,1748728239464,-632.71,0.00018081,2]
[363453957,1748728239474,-500.0,0.00018081,2]
[363453959,1748728239483,-470.0,0.00018082,2]
[363453961,1748728239493,-430.0,0.00018082,2]
[363453963,1748728239503,-430.0,0.00018082,2]
[363453965,1748728239513,-1689.58,0.00018082,2]
[363453967,1748728239522,-1358.16,0.00018082,2]
[363453969,1748728239532,-430.0,0.00018082,2]
[363453971,1748728239541,-430.0,0.00018082,2]
[363453973,1748728239551,-544.86,0.00018082,2]
[363453975,1748728239560,-430.0,0.00018082,2]
[363453977,1748728239570,-845.99,0.00018082,2]
[363453979,1748728239579,-735.33,0.00018082,2]
[363453981,1748728239589,-430.0,0.00018082,2]
[363453983,1748728239598,-430.0,0.00018082,2]
[363453985,1748728239608,-1398.85,0.00018082,2]
[363453987,1748728239617,-430.0,0.00018082,2]
[363453989,1748728239627,-430.0,0.00018082,2]
[363453991,1748728239636,-515.1,0.00018082,2]
[363453993,1748728239646,-432.75,0.00018082,2]
[363453995,1748728239655,-1112.3,0.00018082,2]
[363453997,1748728239664,-469.27,0.00018082,2]
[363453999,1748728239674,-430.0,0.00018082,2]
[363454001,1748728239683,-728.92,0.00018082,2]
[363454003,1748728239692,-430.0,0.00018082,2]
[363454005,1748728239701,-1161.16,0.00018082,2]
[363454007,1748728239711,-524.62,0.00018082,2]
[363454009,1748728239720,-912.32,0.00018082,2]
[363454011,1748728239730,-565.33,0.00018082,2]
[363454013,1748728239740,-430.0,0.00018082,2]
[363454015,1748728239751,-1332.64,0.00018082,2]
[363454017,1748728239760,-728.09,0.00018082,2]
[363454019,1748728239770,-842.5625,0.00018153,2]
[363454021,1748728239779,-229.3428821,0.00018153,2]
[363454023,1748728239789,-212.77096907,0.00018153,2]
[363454025,1748728239799,-423.4608169,0.00018153,2]
[363454027,1748728239809,-160.0,0.00018153,2]
[363454029,1748728239819,-160.0,0.00018153,2]
[363454031,1748728239828,-160.0,0.00018159,2]
[363454033,1748728239838,-1076.32925214,0.00018279,2]
[363454035,1748728239849,-212.31,0.00018356,2]
[363454037,1748728239858,-430.0,0.00018356,2]
[363454040,1748728239868,-1689.58,0.00018356,2]
[363454042,1748728239877,-1358.16,0.00018356,2]
[363454045,1748728239886,-481.46090152,0.00018356,2]
[363454047,1748728239896,-430.0,0.00018356,2]
[363454049,1748728239907,-544.86,0.00018356,2]
[363454051,1748728239918,-430.0,0.00018356,2]
[363454053,1748728239928,-845.99,0.00018356,2]
[363454055,1748728239938,-430.0,0.00018356,2]
[363454057,1748728239948,-735.33,0.00018356,2]
[363454059,1748728239958,-430.0,0.00018356,2]
[363454061,1748728239967,-1398.85,0.00018356,2]
[363454063,1748728239977,-430.0,0.00018356,2]
[363454065,1748728239986,-430.0,0.00018356,2]
[363454067,1748728239996,-515.1,0.00018356,2]
[363454069,1748728240007,-432.75,0.00018356,2]
[363454071,1748728240017,-1112.3,0.00018356,2]
[363454073,1748728240026,-469.27,0.00018356,2]
[363454075,1748728240036,-430.0,0.00018356,2]
[363454077,1748728240046,-728.92,0.00018356,2]
[363454079,1748728240056,-430.0,0.00018356,2]
[363454081,1748728240066,-1161.16,0.00018356,2]
[363454083,1748728240076,-524.62,0.00018356,2]
[363454085,1748728240087,-912.32,0.00018356,2]
[363454087,1748728240096,-565.33,0.00018356,2]
[363454089,1748728240105,-172.96,0.00018356,2]
[363454091,1748728240115,-1332.64,0.00018356,2]
[363454093,1748728240124,-728.09,0.00018356,2]
[363454095,1748728240134,-500.0,0.00018554,2]
[363454097,1748728240143,-1076.32925214,0.00018555,2]
[363454099,1748728240152,-430.0,0.0001863,2]
[363454101,1748728240162,-1689.58,0.0001863,2]
[363454103,1748728240171,-1358.16,0.0001863,2]
[363454105,1748728240181,-430.0,0.0001863,2]
[363454107,1748728240191,-544.86,0.0001863,2]
[363454109,1748728240201,-542.65618381,0.0001863,2]
[363454111,1748728240210,-845.99,0.0001863,2]
[363454114,1748728240221,-430.0,0.0001863,2]
[363454116,1748728240231,-735.33,0.0001863,2]
[363454118,1748728240240,-430.0,0.0001863,2]
[363454120,1748728240250,-1398.85,0.0001863,2]
[363454121,1748728240260,-430.0,0.0001863,2]
[363454124,1748728240270,-430.0,0.0001863,2]
[363454125,1748728240279,-515.1,0.0001863,2]
[363454128,1748728240289,-432.75,0.0001863,2]
[363454129,1748728240302,-1112.3,0.0001863,2]
[363454131,1748728240312,-469.27,0.0001863,2]
[363454133,1748728240322,-430.0,0.0001863,2]
[363454136,1748728240333,-728.92,0.0001863,2]
[363454138,1748728240345,-430.0,0.0001863,2]
[363454140,1748728240355,-1161.16,0.0001863,2]
[363454142,1748728240365,-524.62,0.0001863,2]
[363454144,1748728240375,-912.32,0.0001863,2]
[363454146,1748728240385,-565.33,0.0001863,2]
[363454147,1748728240395,-1332.64,0.0001863,2]
[363454149,1748728240404,-728.09,0.0001863,2]
[363454151,1748728240414,-7425.49,0.00018821,2]
[363454153,1748728240423,-1076.32925214,0.00018831,2]
[363454154,1748728240432,-446.01,0.00018899,2]
[363454156,1748728240442,-1095.79645424,0.000189,2]
[363454158,1748728240453,-430.0,0.00018904,2]
[363454160,1748728240463,-1689.58,0.00018904,2]
[363454162,1748728240473,-1358.16,0.00018904,2]
[363454164,1748728240482,-479.06,0.00018904,2]
[363454166,1748728240492,-544.86,0.00018904,2]
[363454168,1748728240501,-845.99,0.00018904,2]
[363454169,1748728240511,-735.33,0.00018904,2]
[363454171,1748728240521,-430.0,0.00018904,2]
[363454173,1748728240531,-430.0,0.00018904,2]
[363454175,1748728240541,-1398.85,0.00018904,2]
[363454177,1748728240551,-430.0,0.00018904,2]
[363454178,1748728240560,-430.0,0.00018904,2]
[363454180,1748728240570,-515.1,0.00018904,2]
[363454182,1748728240580,-432.75,0.00018904,2]
[363454184,1748728240590,-1112.3,0.00018904,2]
[363454186,1748728240600,-469.27,0.00018904,2]
[363454188,1748728240611,-238.35,0.00018904,2]
[363454190,1748728240620,-728.92,0.00018904,2]
[363454192,1748728240630,-430.0,0.00018904,2]
[363454194,1748728240640,-1161.16,0.00018904,2]
[363454196,1748728240650,-524.62,0.00018904,2]
[363454198,1748728240660,-912.32,0.00018904,2]
[363454199,1748728240670,-565.33,0.00018904,2]
[363454201,1748728240680,-1332.64,0.00018904,2]
[363454203,1748728240689,-728.09,0.00018904,2]
[363454205,1748728240699,-1076.32925214,0.00019107,2]
[363454207,1748728240709,-446.2509871,0.00019123,2]
[363454209,1748728240719,-500.0,0.00019178,2]
[363454211,1748728240729,-500.0,0.00019178,2]
[363454212,1748728240738,-500.0,0.00019178,2]
[363454214,1748728240748,-500.0,0.00019178,2]
[363454216,1748728240758,-500.0,0.00019178,2]
[363454218,1748728240769,-500.0,0.00019178,2]
[363454220,1748728240778,-569.3926571,0.00019178,2]
[363454222,1748728240788,-500.0,0.00019178,2]
[363454224,1748728240797,-215.64330681,0.00019178,2]
[363454225,1748728240806,-500.0,0.00019178,2]
[363454227,1748728240816,-250.0,0.00019178,2]
[363454229,1748728240825,-430.0,0.00019178,2]
[363454231,1748728240834,-1689.58,0.00019178,2]
[363454233,1748728240844,-1358.16,0.00019178,2]
[363454234,1748728240854,-544.86,0.00019178,2]
[363454247,1748728240985,-845.99,0.00019178,2]
[363454249,1748728240995,-735.33,0.00019178,2]
[363454251,1748728241005,-430.0,0.00019178,2]
[363454253,1748728241015,-577.14,0.00019178,2]
[363454255,1748728241025,-1398.85,0.00019178,2]
[363454257,1748728241035,-412.55,0.00019178,2]
[363454259,1748728241045,-430.0,0.00019178,2]
[363454261,1748728241054,-515.1,0.00019178,2]
[363454263,1748728241064,-151.0,0.00019178,2]
[363454265,1748728241074,-432.75,0.00019178,2]
[363454266,1748728241083,-1112.3,0.00019178,2]
[363454268,1748728241093,-469.27,0.00019178,2]
[363454270,1748728241103,-728.92,0.00019178,2]
[363454272,1748728241113,-430.0,0.00019178,2]
[363454274,1748728241123,-1161.16,0.00019178,2]
[363454276,1748728241133,-524.62,0.00019178,2]
[363454278,1748728241142,-912.32,0.00019178,2]
[363454280,1748728241152,-565.33,0.00019178,2]
[363454282,1748728241161,-1332.64,0.00019178,2]
[363454283,1748728241171,-430.0,0.00019178,2]
[363454285,1748728241181,-430.0,0.00019178,2]
[363454287,1748728241193,-430.0,0.00019178,2]
[363454289,1748728241203,-430.0,0.00019178,2]
[363454290,1748728241212,-430.0,0.00019178,2]
[363454292,1748728241222,-430.0,0.00019178,2]
[363454294,1748728241232,-430.0,0.00019178,2]
[363454296,1748728241242,-430.0,0.00019178,2]
[363454298,1748728241252,-430.0,0.00019178,2]
[363454300,1748728241262,-430.0,0.00019178,2]
[363454302,1748728241272,-430.0,0.00019178,2]
[363454304,1748728241281,-728.09,0.00019178,2]
[363454306,1748728241292,-264.715847,0.00019178,2]
[363454308,1748728241302,-174.33316,0.00019178,2]
[363454310,1748728241312,-151.0,0.00019205,2]
[363454312,1748728241321,-151.0,0.00019233,2]
[363454313,1748728241330,-202.57043117,0.0001926,2]
[363454315,1748728241346,-30191.14888411,0.00019329,2]
[363454317,1748728241355,-1076.32925214,0.00019383,2]
[363454319,1748728241364,-430.0,0.00019452,2]
[363454321,1748728241373,-1689.58,0.00019452,2]
[363454323,1748728241384,-1358.16,0.00019452,2]
[363454325,1748728241394,-544.86,0.00019452,2]
[363454327,1748728241403,-845.99,0.00019452,2]
[363454329,1748728241413,-735.33,0.00019452,2]
[363454331,1748728241422,-430.0,0.00019452,2]
[363454333,1748728241432,-1398.85,0.00019452,2]
[363454334,1748728241442,-430.0,0.00019452,2]
[363454336,1748728241452,-515.1,0.00019452,2]
[363454338,1748728241461,-432.75,0.00019452,2]
[363454340,1748728241471,-1112.3,0.00019452,2]
[363454342,1748728241480,-469.27,0.00019452,2]
[363454344,1748728241489,-728.92,0.00019452,2]
[363454346,1748728241499,-430.0,0.00019452,2]
[363454348,1748728241509,-1161.16,0.00019452,2]
[363454349,1748728241521,-524.62,0.00019452,2]
[363454351,1748728241531,-912.32,0.00019452,2]
[363454353,1748728241542,-565.33,0.00019452,2]
[363454355,1748728241551,-1332.64,0.00019452,2]
[363454357,1748728241562,-430.0,0.00019452,2]
[363454359,1748728241578,-728.09,0.00019452,2]
[363454361,1748728241589,-152.0,0.00019628,2]
[363454363,1748728241599,-1076.32925214,0.00019659,2]
[363454365,1748728241610,-11138.23,0.00019677,2]
[363454367,1748728241620,-151.0,0.00019677,2]
[363454369,1748728241631,-430.0,0.00019726,2]
[363454371,1748728241640,-1689.58,0.00019726,2]
[363454373,1748728241650,-1358.16,0.00019726,2]
[363454375,1748728241660,-544.86,0.00019726,2]
[363454377,1748728241670,-845.99,0.00019726,2]
[363454378,1748728241679,-735.33,0.00019726,2]
[363454380,1748728241689,-430.0,0.00019726,2]
[363454382,1748728241699,-1398.85,0.00019726,2]
[363454384,1748728241708,-430.0,0.00019726,2]
[363454386,1748728241718,-515.1,0.00019726,2]
[363454388,1748728241728,-432.75,0.00019726,2]
[363454390,1748728241738,-1112.3,0.00019726,2]
[363454392,1748728241748,-469.27,0.00019726,2]
[363454394,1748728241758,-728.92,0.00019726,2]
[363454396,1748728241768,-430.0,0.00019726,2]
[363454398,1748728241777,-1161.16,0.00019726,2]
[363454400,1748728241787,-524.62,0.00019726,2]
[363454402,1748728241796,-912.32,0.00019726,2]
[363454404,1748728241805,-565.33,0.00019726,2]
[363454406,1748728241815,-1332.64,0.00019726,2]
[363454407,1748728241824,-430.0,0.00019726,2]
[363454409,1748728241833,-728.09,0.00019726,2]
[363454411,1748728241843,-408.558,0.00019735,2]
[363454413,1748728241853,-178.7,0.00019735,2]
[363454415,1748728241863,-572.2963003,0.0001989,2]
[363454417,1748728241872,-501.0382725,0.0001991,2]
[363454419,1748728241882,-1076.32925214,0.00019934,2]
[363454421,1748728241891,-800.0,0.00019964,2]
[363454423,1748728241900,-430.0,0.0002,2]
[363454424,1748728241910,-1689.58,0.0002,2]
[363454426,1748728241919,-1358.16,0.0002,2]
[363454428,1748728241929,-544.86,0.0002,2]
[363454430,1748728241938,-845.99,0.0002,2]
[363454432,1748728241948,-735.33,0.0002,2]
[363454434,1748728241958,-430.0,0.0002,2]
[363454436,1748728241968,-1398.85,0.0002,2]
[363454438,1748728241979,-430.0,0.0002,2]
[363454440,1748728241988,-515.1,0.0002,2]
[363454442,1748728241998,-500.0,0.0002,2]
[363454444,1748728242008,-432.75,0.0002,2]
[363454446,1748728242018,-1112.3,0.0002,2]
[363454448,1748728242028,-469.27,0.0002,2]
[363454450,1748728242037,-728.92,0.0002,2]
[363454451,1748728242047,-430.0,0.0002,2]
[363454453,1748728242057,-1161.16,0.0002,2]
[363454455,1748728242067,-524.62,0.0002,2]
[363454457,1748728242076,-912.32,0.0002,2]
[363454459,1748728242086,-565.33,0.0002,2]
[363454461,1748728242096,-1332.64,0.0002,2]
[363454463,1748728242105,-728.09,0.0002,2]
[363454465,1748728242114,-579.070147,0.00020187,2]
[363454467,1748728242124,-1076.32925214,0.0002021,2]
[363454469,1748728242134,-446.2509871,0.00020242,2]
[363454471,1748728242143,-430.0,0.00020273,2]
[363454472,1748728242152,-1689.58,0.00020273,2]
[363454474,1748728242162,-1358.16,0.00020273,2]
[363454476,1748728242174,-544.86,0.00020273,2]
[363454478,1748728242184,-845.99,0.00020273,2]
[363454480,1748728242193,-735.33,0.00020273,2]
[363454482,1748728242203,-340.66,0.00020273,2]
[363454484,1748728242214,-1398.85,0.00020273,2]
[363454486,1748728242224,-430.0,0.00020273,2]
[363454488,1748728242234,-515.1,0.00020273,2]
[363454490,1748728242244,-432.75,0.00020273,2]
[363454492,1748728242254,-1112.3,0.00020273,2]
[363454494,1748728242265,-469.27,0.00020273,2]
[363454496,1748728242274,-728.92,0.00020273,2]
[363454498,1748728242284,-430.0,0.00020273,2]
[363454500,1748728242294,-1161.16,0.00020273,2]
[363454502,1748728242303,-524.62,0.00020273,2]
[363454504,1748728242313,-1529.061729,0.00020273,2]
[363454506,1748728242323,-912.32,0.00020273,2]
[363454508,1748728242332,-1529.061729,0.00020273,2]
[363454509,1748728242346,-565.33,0.00020273,2]
[363454511,1748728242356,-1417.206197,0.00020273,2]
[363454513,1748728242366,-644.233352,0.00020273,2]
[363454515,1748728242376,-1417.206197,0.00020273,2]
[363454517,1748728242386,-235.762222,0.00020273,2]
[363454519,1748728242395,-644.233352,0.00020273,2]
[363454521,1748728242404,-235.762222,0.00020273,2]
[363454523,1748728242414,-1332.64,0.00020273,2]
[363454525,1748728242423,-728.09,0.00020273,2]
[363454527,1748728242432,-240.0,0.00020274,3]
[363454529,1748728242442,-151.0,0.000203,4]
[363454530,1748728242452,-151.0,0.00020417,2]
[363454532,1748728242462,-1076.32925214,0.00020486,3]
[363454534,1748728242472,-14850.97,0.00020532,2]
[363454536,1748728242481,-962.0,0.00020534,2]
[363454538,1748728242491,-2227.0,0.00020534,2]
[363454540,1748728242500,-708.0,0.00020534,2]
[363454542,1748728242509,-151.5283339,0.00020547,2]
[363454544,1748728242519,-430.0,0.00020547,2]
[363454546,1748728242528,-1689.58,0.00020547,2]
[363454548,1748728242538,-1358.16,0.00020547,2]
[363454550,1748728242548,-544.86,0.00020547,2]
[363454552,1748728242561,-845.99,0.00020547,2]
[363454553,1748728242573,-735.33,0.00020547,2]
[363454555,1748728242587,-1398.85,0.00020547,2]
[363454557,1748728242596,-430.0,0.00020547,2]
[363454559,1748728242606,-515.1,0.00020547,2]
[363454561,1748728242615,-432.75,0.00020547,2]
[363454563,1748728242626,-1112.3,0.00020547,2]
[363454565,1748728242635,-469.27,0.00020547,2]
[363454567,1748728242645,-728.92,0.00020547,2]
[363454569,1748728242654,-430.0,0.00020547,2]
[363454571,1748728242664,-1161.16,0.00020547,2]
[363454573,1748728242674,-524.62,0.00020547,2]
[363454575,1748728242683,-912.32,0.00020547,2]
[363454577,1748728242693,-565.33,0.00020547,2]
[363454579,1748728242703,-1332.64,0.00020547,2]
[363454581,1748728242712,-728.09,0.00020547,2]
[363454583,1748728242721,-9453.5,0.000206,2]
[363454585,1748728242730,-151.0,0.00020739,2]
[363454587,1748728242740,-151.0,0.00020739,2]
[363454588,1748728242749,-151.0,0.00020739,2]
[363454590,1748728242759,-151.0,0.00020739,2]
[363454592,1748728242769,-1076.32925214,0.00020762,3]
[363454594,1748728242778,-6651.46392663,0.00020803,2]
[363454596,1748728242788,-430.0,0.00020821,2]
[363454598,1748728242798,-1689.58,0.00020821,2]
[363454600,1748728242808,-1358.16,0.00020821,2]
[363454602,1748728242817,-544.86,0.00020821,2]
[363454604,1748728242827,-845.99,0.00020821,2]
[363454607,1748728242836,-735.33,0.00020821,2]
[363454609,1748728242846,-1398.85,0.00020821,2]
[363454611,1748728242855,-430.0,0.00020821,2]
[363454613,1748728242864,-515.1,0.00020821,2]
[363454615,1748728242874,-432.75,0.00020821,2]
[363454616,1748728242884,-1112.3,0.00020821,2]
[363454618,1748728242894,-469.27,0.00020821,2]
[363454620,1748728242904,-728.92,0.00020821,2]
[363454622,1748728242913,-430.0,0.00020821,2]
[363454624,1748728242923,-1161.16,0.00020821,2]
[363454626,1748728242932,-524.62,0.00020821,2]
[363454628,1748728242942,-912.32,0.00020821,2]
[363454630,1748728242952,-565.33,0.00020821,2]
[363454633,1748728242961,-1332.64,0.00020821,2]
[363454636,1748728242971,-728.09,0.00020821,2]
[363454638,1748728242980,-176.4540852,0.00020877,2]
[363454640,1748728242989,-316.855313,0.00020877,2]
[363454642,1748728242999,-1144.3750143,0.00020877,2]
[363454643,1748728243008,-176.4540852,0.00020877,2]
[363454645,1748728243018,-158.4581234,0.00020877,2]
[363454647,1748728243028,-572.2963003,0.00020877,2]
[363454649,1748728243038,-158.4581234,0.00020877,2]
[363454651,1748728243048,-176.4540852,0.00020877,2]
[363454653,1748728243057,-572.2963003,0.00020877,2]
[363454655,1748728243066,-158.4581234,0.00020877,2]
[363454657,1748728243075,-176.4540852,0.00020877,2]
[363454659,1748728243085,-572.2963003,0.00020877,2]
[363454661,1748728243094,-158.4581234,0.00020877,2]
[363454662,1748728243105,-572.2963003,0.00020877,2]
[363454664,1748728243114,-158.4581234,0.00020877,2]
[363454666,1748728243124,-1144.5926006,0.00020877,2]
[363454668,1748728243133,-151.0,0.000209,4]
[363454670,1748728243143,-326247.58519,0.00020916,2]
[363454672,1748728243152,-16862.30949666,0.00020917,2]
[363454674,1748728243162,-300.898304,0.00020931,2]
[363454676,1748728243172,-151.0,0.00020931,2]
[363454678,1748728243182,-1001.529059,0.00020941,3]
[363454680,1748728243191,-207.4,0.00021007,2]
[363454681,1748728243200,-300.0,0.00021007,2]
[363454683,1748728243210,-300.0,0.00021007,2]
[363454685,1748728243220,-300.0,0.00021007,2]
[363454687,1748728243230,-300.0,0.00021007,2]
[363454689,1748728243240,-300.0,0.00021007,2]
[363454691,1748728243249,-300.0,0.00021007,2]
[363454693,1748728243259,-300.0,0.00021007,2]
[363454695,1748728243268,-300.0,0.00021007,2]
[363454697,1748728243278,-300.0,0.00021007,2]
[363454699,1748728243288,-300.0,0.00021007,2]
[363454701,1748728243298,-5000.0,0.00021007,2]
[363454703,1748728243307,-300.0,0.00021007,2]
[363454704,1748728243317,-300.0,0.00021007,2]
[363454706,1748728243327,-300.0,0.00021007,2]
[363454708,1748728243338,-300.0,0.00021007,2]
[363454710,1748728243350,-300.0,0.00021007,2]
[363454712,1748728243359,-1076.32925214,0.00021038,4]
[363454714,1748728243371,-800.0,0.0002106,2]
[363454716,1748728243381,-430.0,0.00021095,2]
[363454718,1748728243392,-1689.58,0.00021095,2]
[363454719,1748728243401,-1358.16,0.00021095,2]
[363454720,1748728243411,-544.86,0.00021095,2]
[363454721,1748728243450,-845.99,0.00021095,2]
[363454722,1748728243461,-735.33,0.00021095,2]
[363454723,1748728243470,-1198.47486543,0.00021095,2]
[363454724,1748728243582,-200.37513457,0.00021095,2]
[363454725,1748728243592,-384.38,0.00021095,2]
[363454726,1748728243602,-48.5954948,0.00021095,2]
[363454727,1748728243621,-430.0,0.0001726,2]
[363454728,1748728243631,-23.67243545,0.00021095,2]
[363454729,1748728243756,-494.22,0.00016438,2]
[363454730,1748728243766,-430.0,0.00017534,2]
[363454731,1748728243776,-430.0,0.00017808,2]
[363454732,1748728243785,-430.0,0.00018082,2]
[363454733,1748728243795,-268.77,0.00018356,2]
[363454734,1748728243804,-442.83206975,0.00021095,2]
[363454735,1748728243813,-432.75,0.00021095,2]
[363454736,1748728243823,-1112.3,0.00021095,2]
[363454737,1748728243833,-469.27,0.00021095,2]
[363454738,1748728243843,-14.11507405,0.00021095,2]
[363454739,1748728243855,-714.80492595,0.00021095,2]
[363454740,1748728243864,-235.98164205,0.00021095,2]
[363454741,1748728243876,-194.01835795,0.00021095,2]
[363454742,1748728243885,-1161.16,0.00021095,2]
[363454743,1748728243895,-524.62,0.00021095,2]
[363454745,1748728243905,-912.32,0.00021095,2]
[363454746,1748728243915,-565.33,0.00021095,2]
[363454747,1748728243924,-1332.64,0.00021095,2]
[363454748,1748728243933,-728.09,0.00021095,2]
[363454750,1748728243942,-1417.206197,0.00021127,2]
[363454751,1748728243952,-644.233352,0.00021127,2]
[363454753,1748728243961,-1417.206197,0.00021127,2]
[363454754,1748728243970,-235.762222,0.00021127,2]
[363454756,1748728243979,-644.233352,0.00021127,2]
[363454758,1748728243989,-235.762222,0.00021127,2]
[363454760,1748728243998,-500.94988306,0.0002115,2]
[363454762,1748728244008,-500.0,0.0002118,2]
[363454764,1748728244018,-500.0,0.0002118,2]
[363454766,1748728244028,-500.0,0.0002118,2]
[363454768,1748728244038,-500.89721394,0.0002118,2]
[363454770,1748728244047,-500.0,0.0002118,2]
[363454772,1748728244057,-300.0,0.0002118,2]
[363454774,1748728244067,-600.0,0.0002118,2]
[363454776,1748728244076,-1529.061729,0.00021208,2]
[363454778,1748728244086,-1529.061729,0.00021208,2]
[363454780,1748728244096,-151.0,0.00021267,2]
[363454782,1748728244106,-1076.32925214,0.00021314,5]
[363454784,1748728244116,-446.2509871,0.0002136,2]
[363454786,1748728244126,-151.0,0.00021369,2]
[363454788,1748728244136,-759.333846,0.00021369,2]
[363454790,1748728244146,-759.333846,0.00021369,2]
[363454792,1748728244155,-171.737311,0.00021369,2]
[363454794,1748728244165,-171.737311,0.00021369,2]
[363454796,1748728244175,-430.0,0.00021369,2]
[363454798,1748728244184,-1689.58,0.00021369,2]
[363454800,1748728244194,-1358.16,0.00021369,2]
[363454802,1748728244204,-544.86,0.00021369,2]
[363454804,1748728244214,-284.20442385,0.00021369,2]
[363456105,1748728267107,175.49983514,6.8e-07,2]
[363456106,1748728267228,175.49983514,6.8e-07,2]
[363456118,1748728910078,552.896868,0.00013699,2]
[363456175,1748729226100,-504.38300175,0.00016175,2]
[363456176,1748729226123,-300.0,0.00016436,2]
[363456177,1748729226148,-645.0,0.00016436,2]
[363456178,1748729226171,-300.0,0.00016436,2]
[363456179,1748729226193,-300.0,0.00016436,2]
[363456180,1748729226216,-1095.30612232,0.00016437,2]
[363456181,1748729226239,-453.93020497,0.00016437,2]
[363456182,1748729226265,-500.0,0.00016437,2]
[363456183,1748729226292,-500.0,0.00016437,2]
[363456184,1748729226317,-500.0,0.00016437,2]
[363456185,1748729226344,-500.0,0.00016437,2]
[363456186,1748729226369,-447.24869979,0.00016437,2]
[363456187,1748729226397,-500.0,0.00016437,2]
[363456188,1748729226427,-500.0,0.00016437,2]
[363456189,1748729226454,-394.34615076,0.00016437,2]
[363456190,1748729253086,-647.65893508,0.00016338,2]
[363456192,1748729253111,-105.65384924,0.00016437,2]